fUSD/lending_fUSD_20260503
["ID","MTS","AMOUNT","RATE_DAILY","PERIOD"]
[421510838,1777788640000,-14448.8488798,0.000387,2]
[421510839,1777788640000,-1020.03193052,0.000387,2]
[421510837,1777788640000,-38328.80592239,0.000387,2]
[421510847,1777788642000,-546.0,0.000387,2]
[421510851,1777788643000,-662.83588625,0.000387,2]
[421510850,1777788643000,-174.12818883,0.000387,2]
[421510849,1777788643000,-509.0,0.00027137,2]
[421510848,1777788643000,-17.94892738,0.000387,2]
[421510881,1777788646000,-13885.12831469,0.000387,2]
[421510880,1777788646000,-6606.04239241,0.000387,2]
[421510879,1777788646000,-509.0,0.00033011,8]
[421510898,1777788939000,155.14,0.00030137,120]
[421510903,1777789756000,-6024.32547167,0.00011,2]
[421510904,1777789756000,-3500.55131773,0.000114,2]
[421510902,1777789756000,-381.09416414,0.00010682,2]
[421510906,1777789769000,-300.0,0.0001748,2]
[421510907,1777789769000,-1518.31147803,0.00017481,2]
[421510905,1777789769000,-250.0,0.000121,2]
[421510924,1777789832000,-563.68189913,0.00012,2]
[421510916,1777789832000,-122.17114696,0.00011999,2]
[421510915,1777789832000,-779.06303547,0.0001199,2]
[421510918,1777789832000,-159.25848717,0.00011999,2]
[421510919,1777789832000,-140.74151283,0.00011999,2]
[421510917,1777789832000,-1077.82885304,0.00011999,2]
[421510921,1777789832000,-454.95560959,0.00012,2]
[421510922,1777789832000,-7689.81396916,0.00012,2]
[421510925,1777789832000,-3618.60026185,0.00012,2]
[421510923,1777789832000,-895.41,0.00012,2]
[421510920,1777789832000,-597.15507108,0.00012,2]
[421510988,1777789838000,-500.0,0.00011999,2]
[421510983,1777789838000,-500.0,0.00011999,2]
[421510985,1777789838000,-500.0,0.00011999,2]
[421510989,1777789838000,-500.0,0.00011999,2]
[421510986,1777789838000,-500.0,0.00011999,2]
[421510984,1777789838000,-308.05822369,0.00011999,2]
[421510979,1777789838000,-274.6911054,0.00011999,2]
[421510990,1777789838000,-500.0,0.00011999,2]
[421510981,1777789838000,-615.29268076,0.00011999,2]
[421510980,1777789838000,-500.0,0.00011999,2]
[421510977,1777789838000,-245.63028016,0.00011999,2]
[421510978,1777789838000,-500.0,0.00011999,2]
[421510982,1777789838000,-500.0,0.00011999,2]
[421510987,1777789838000,-189.58866825,0.00011999,2]
[421511001,1777789838000,-15278.55746335,0.00012,2]
[421510991,1777789838000,-500.0,0.00011999,2]
[421510993,1777789838000,-500.0,0.00011999,2]
[421510994,1777789838000,-500.0,0.00011999,2]
[421510995,1777789838000,-500.0,0.00011999,2]
[421510998,1777789838000,-500.0,0.00011999,2]
[421510996,1777789838000,-500.0,0.00011999,2]
[421511003,1777789838000,-829.67010334,0.00012,2]
[421510999,1777789838000,-500.0,0.00011999,2]
[421510997,1777789838000,-500.0,0.00011999,2]
[421511004,1777789838000,-380.52932165,0.00012,2]
[421511000,1777789838000,-500.0,0.00011999,2]
[421511002,1777789838000,-22581.66590806,0.00012,2]
[421511005,1777789838000,-390759.71006733,0.00012,2]
[421511006,1777789838000,-265.869,0.00012,2]
[421510992,1777789838000,-500.0,0.00011999,2]
[421511045,1777789840000,-6061.57519651,0.00012,2]
[421511046,1777789840000,-6087.10756133,0.00012,2]
[421511047,1777789840000,-710.75,0.00012,2]
[421511048,1777789840000,-1029.67326749,0.00012,2]
[421511052,1777789841000,-1147.126944,0.00012,2]
[421511049,1777789841000,-1643.75478113,0.00012,2]
[421511067,1777789843000,-416.0,0.00012,2]
[421511066,1777789843000,-6649.42044647,0.00012,2]
[421511100,1777789846000,-7810.24304539,0.00012,2]
[421511099,1777789846000,-392.00860854,0.00012,2]
[421511097,1777789846000,-315.52696158,0.00012,2]
[421511098,1777789846000,-381.13930652,0.00012,2]
[421511096,1777789846000,-6363.50329228,0.00012,2]
[421511095,1777789846000,-631.46744813,0.000119,3]
[421511094,1777789846000,-370.32589705,0.000119,3]
[421511130,1777789866000,94.02904646,0.000107,2]
[421511132,1777789915000,459.76,0.00028082,120]
[421511134,1777789915000,459.76,0.00029233,120]
[421511133,1777789915000,459.76,0.00028658,120]
[421511135,1777789916000,459.76,0.00029808,120]
[421511138,1777790185000,165.57,0.00022,120]
[421511139,1777790485000,1257.40649792,8.405e-05,2]
[421511140,1777790528000,160.59,8.243e-05,2]
[421511146,1777790913000,-193.0,9.823e-05,2]
[421511141,1777790913000,-265.0,8.93e-05,2]
[421511143,1777790913000,-171.70038204,9.04e-05,2]
[421511142,1777790913000,-160.59,8.93e-05,2]
[421511145,1777790913000,-2003.14593727,9.823e-05,2]
[421511144,1777790913000,-160.59,9.617e-05,2]
[421511148,1777790913000,-250.0,9.823e-05,2]
[421511151,1777790913000,-539.16602603,0.00010689,2]
[421511147,1777790913000,-213.19692808,9.823e-05,2]
[421511150,1777790913000,-160.59,0.00010304,2]
[421511153,1777790913000,-300.0,0.00010697,2]
[421511152,1777790913000,-300.0,0.00010697,2]
[421511154,1777790913000,-286.65485468,0.00010698,2]
[421511156,1777790913000,-3845.43670525,0.00010698,3]
[421511149,1777790913000,-150.92916665,0.0001,2]
[421511155,1777790913000,-1000.0,0.00010698,2]
[421511170,1777790914000,-500.0,0.00010699,2]
[421511165,1777790914000,-500.0,0.00010699,2]
[421511169,1777790914000,-500.0,0.00010699,2]
[421511166,1777790914000,-500.0,0.00010699,2]
[421511167,1777790914000,-500.0,0.00010699,2]
[421511164,1777790914000,-308.05822369,0.00010699,2]
[421511161,1777790914000,-500.0,0.00010699,2]
[421511159,1777790914000,-1200.0,0.00010698,2]
[421511162,1777790914000,-500.0,0.00010699,2]
[421511160,1777790914000,-150.0,0.00010698,2]
[421511157,1777790914000,-1634.67329475,0.00010698,3]
[421511158,1777790914000,-300.0,0.00010698,2]
[421511171,1777790914000,-500.0,0.00010699,2]
[421511163,1777790914000,-500.0,0.00010699,2]
[421511168,1777790914000,-500.0,0.00010699,2]
[421511181,1777790914000,-500.0,0.00010699,2]
[421511172,1777790914000,-500.0,0.00010699,2]
[421511187,1777790914000,-500.0,0.00010699,2]
[421511173,1777790914000,-500.0,0.00010699,2]
[421511188,1777790914000,-500.0,0.00010699,2]
[421511186,1777790914000,-500.0,0.00010699,2]
[421511185,1777790914000,-500.0,0.00010699,2]
[421511182,1777790914000,-500.0,0.00010699,2]
[421511183,1777790914000,-500.0,0.00010699,2]
[421511184,1777790914000,-500.0,0.00010699,2]
[421511180,1777790914000,-500.0,0.00010699,2]
[421511179,1777790914000,-500.0,0.00010699,2]
[421511177,1777790914000,-500.0,0.00010699,2]
[421511178,1777790914000,-500.0,0.00010699,2]
[421511176,1777790914000,-500.0,0.00010699,2]
[421511175,1777790914000,-92.73151844,0.00010699,2]
[421511174,1777790914000,-407.26848156,0.00010699,2]
[421511198,1777790915000,-500.0,0.00010699,2]
[421511204,1777790915000,-500.0,0.00010699,2]
[421511205,1777790915000,-500.0,0.00010699,2]
[421511202,1777790915000,-500.0,0.00010699,2]
[421511201,1777790915000,-500.0,0.00010699,2]
[421511200,1777790915000,-500.0,0.00010699,2]
[421511203,1777790915000,-500.0,0.00010699,2]
[421511199,1777790915000,-500.0,0.00010699,2]
[421511190,1777790915000,-500.0,0.00010699,2]
[421511196,1777790915000,-92.73151844,0.00010699,2]
[421511194,1777790915000,-500.0,0.00010699,2]
[421511195,1777790915000,-407.26848156,0.00010699,2]
[421511193,1777790915000,-500.0,0.00010699,2]
[421511192,1777790915000,-500.0,0.00010699,2]
[421511191,1777790915000,-500.0,0.00010699,2]
[421511189,1777790915000,-500.0,0.00010699,2]
[421511207,1777790915000,-326.2146258,0.00010699,2]
[421511197,1777790915000,-500.0,0.00010699,2]
[421511206,1777790915000,-500.0,0.00010699,2]
[421511225,1777790915000,-500.0,0.00010699,2]
[421511208,1777790915000,-150.0,0.00010699,2]
[421511209,1777790915000,-500.0,0.00010699,2]
[421511228,1777790915000,-500.0,0.00010699,2]
[421511226,1777790915000,-500.0,0.00010699,2]
[421511227,1777790915000,-500.0,0.00010699,2]
[421511223,1777790915000,-500.0,0.00010699,2]
[421511222,1777790915000,-549.92599128,0.00010699,2]
[421511221,1777790915000,-500.0,0.00010699,2]
[421511220,1777790915000,-500.0,0.00010699,2]
[421511218,1777790915000,-68.94614424,0.00010699,2]
[421511224,1777790915000,-500.0,0.00010699,2]
[421511217,1777790915000,-431.05385576,0.00010699,2]
[421511215,1777790915000,-500.0,0.00010699,2]
[421511216,1777790915000,-500.0,0.00010699,2]
[421511214,1777790915000,-500.0,0.00010699,2]
[421511213,1777790915000,-500.0,0.00010699,2]
[421511212,1777790915000,-500.0,0.00010699,2]
[421511211,1777790915000,-500.0,0.00010699,2]
[421511219,1777790915000,-500.0,0.00010699,2]
[421511210,1777790915000,-500.0,0.00010699,2]
[421511238,1777790916000,-500.0,0.00010699,2]
[421511237,1777790916000,-500.0,0.00010699,2]
[421511236,1777790916000,-500.0,0.00010699,2]
[421511235,1777790916000,-265.29268076,0.00010699,2]
[421511232,1777790916000,-500.0,0.00010699,2]
[421511233,1777790916000,-500.0,0.00010699,2]
[421511231,1777790916000,-500.0,0.00010699,2]
[421511230,1777790916000,-500.0,0.00010699,2]
[421511229,1777790916000,-500.0,0.00010699,2]
[421511240,1777790916000,-384.16481628,0.00010699,2]
[421511234,1777790916000,-500.0,0.00010699,2]
[421511239,1777790916000,-115.83518372,0.00010699,2]
[421511247,1777790916000,-150.0,0.00010699,2]
[421511242,1777790916000,-350.0,0.00010699,2]
[421511241,1777790916000,-500.0,0.00010699,2]
[421511252,1777790916000,-10000.0,0.000107,2]
[421511248,1777790916000,-189.3307561,0.00010699,2]
[421511249,1777790916000,-150.0,0.00010699,2]
[421511246,1777790916000,-150.0,0.00010699,2]
[421511253,1777790916000,-10000.0,0.000107,2]
[421511251,1777790916000,-7053.39747889,0.000107,2]
[421511245,1777790916000,-150.0,0.00010699,2]
[421511244,1777790916000,-150.0,0.00010699,2]
[421511243,1777790916000,-456.48935297,0.00010699,2]
[421511250,1777790916000,-316.61759576,0.00010699,2]
[421511255,1777790917000,-10000.0,0.000107,2]
[421511254,1777790917000,-10000.0,0.000107,2]
[421511257,1777790918000,-10000.0,0.000107,2]
[421511256,1777790918000,-10000.0,0.000107,2]
[421511260,1777790919000,-10000.0,0.000107,2]
[421511259,1777790919000,-10000.0,0.000107,2]
[421511258,1777790919000,-10000.0,0.000107,2]
[421511262,1777790920000,-10000.0,0.000107,2]
[421511261,1777790920000,-10000.0,0.000107,2]
[421511263,1777790921000,-10000.0,0.000107,2]
[421511264,1777790921000,-10000.0,0.000107,2]
[421511266,1777790922000,-10000.0,0.000107,2]
[421511265,1777790922000,-10000.0,0.000107,2]
[421511269,1777790923000,-10000.0,0.000107,2]
[421511268,1777790923000,-10000.0,0.000107,2]
[421511267,1777790923000,-10000.0,0.000107,2]
[421511271,1777790924000,-10000.0,0.000107,2]
[421511270,1777790924000,-10000.0,0.000107,2]
[421511273,1777790925000,-10000.0,0.000107,2]
[421511272,1777790925000,-10000.0,0.000107,2]
[421511275,1777790926000,-10000.0,0.000107,2]
[421511274,1777790926000,-10000.0,0.000107,2]
[421511276,1777790927000,-10000.0,0.000107,2]
[421511277,1777790928000,-10000.0,0.000107,2]
[421511278,1777790941000,-6786.0,0.000107,2]
[421511283,1777791032000,-748.83339147,0.00010699,2]
[421511282,1777791032000,-607.4368375,0.00010699,2]
[421511284,1777791032000,-255.75980045,0.00010699,2]
[421511285,1777791032000,-148.36094912,0.00010699,2]
[421511286,1777791032000,-553.0,0.00010699,2]
[421511289,1777791032000,-611.52213315,0.00010699,2]
[421511288,1777791032000,-550.00639416,0.00010699,2]
[421511287,1777791032000,-38.47147269,0.00010699,2]
[421511290,1777791032000,-111109.20895679,0.000107,2]
[421511292,1777791032000,-160.59,0.00010991,2]
[421511291,1777791032000,-57765.2989764,0.000107,2]
[421511294,1777791032000,-11143.12670035,0.00011099,2]
[421511299,1777791032000,-857.0,0.00011769,2]
[421511295,1777791032000,-9843.84379605,0.000115,2]
[421511298,1777791032000,-300.0,0.00011758,2]
[421511296,1777791032000,-160.59,0.00011678,2]
[421511297,1777791032000,-255.0,0.00011736,2]
[421511301,1777791032000,-5000.0,0.0001177,2]
[421511302,1777791032000,-300.0,0.0001177,2]
[421511314,1777791032000,-519.37535698,0.0001199,2]
[421511305,1777791032000,-250.0,0.0001177,2]
[421511309,1777791032000,-1960.7297161,0.000119,2]
[421511307,1777791032000,-155.4336307,0.000119,2]
[421511311,1777791032000,-217.94669982,0.000119,2]
[421511316,1777791032000,-18697.3196211,0.00012,2]
[421511293,1777791032000,-419.05364204,0.00011,2]
[421511329,1777791038000,-4992.61308658,0.00012,2]
[421511328,1777791038000,-3796.22534557,0.00012,2]
[421511331,1777791038000,-48993.48432967,0.00012,2]
[421511330,1777791038000,-1620.13000002,0.00012,2]
[421511333,1777791038000,-380.52932165,0.00012,2]
[421511332,1777791038000,-829.67010334,0.00012,2]
[421511334,1777791038000,-2917.5460326,0.00012,2]
[421511335,1777791038000,-552.93113016,0.00012,2]
[421511367,1777791040000,-1730.31698019,0.00012,2]
[421511366,1777791040000,-152516.97604634,0.00012,2]
[421511364,1777791040000,-9948.13769428,0.00012,2]
[421511365,1777791040000,-949.38353732,0.00012,2]
[421511372,1777791041000,-644.38,0.00012,2]
[421511369,1777791041000,-505.0,0.00012,2]
[421511371,1777791041000,-591.07158026,0.00012,2]
[421511370,1777791041000,-2510.73356464,0.00012,2]
[421511368,1777791041000,-42293.39808523,0.00012,2]
[421511380,1777791043000,-9337.82413837,0.00012,2]
[421511381,1777791043000,-10382.28291694,0.00012,2]
[421511384,1777791043000,-648.92043422,0.00012,2]
[421511383,1777791043000,-42.21298813,0.00012,2]
[421511382,1777791043000,-2101.50663372,0.00012,2]
[421511390,1777791046000,-492.98298303,0.00012,2]
[421511389,1777791046000,-7019.88673891,0.00012,2]
[421511388,1777791046000,-511.63701206,0.00012,2]
[421511387,1777791046000,-364.01778181,0.00012,2]
[421511391,1777791047000,-7789.63561146,0.00012,2]
[421511394,1777791713000,-172.11,9.466e-05,2]
[421511396,1777791713000,-240.4086088,0.00011534,2]
[421511398,1777791713000,-5591.0708662,0.00011534,2]
[421511397,1777791713000,-3366.410525,0.00011534,2]
[421511395,1777791713000,-1200.0,0.00011533,2]
[421511399,1777791756000,164.1962319,0.00030136,120]
[421511402,1777792169000,-34.36946986,0.00011531,2]
[421511401,1777792169000,-1200.0,0.0001153,2]
[421511419,1777792231000,-152.64809563,0.000119,2]
[421511420,1777792231000,-155.43363069,0.000119,2]
[421511418,1777792231000,-150.0,0.00011899,2]
[421511423,1777792231000,-159.52,0.00011988,2]
[421511414,1777792231000,-332.6586277,0.00011531,2]
[421511413,1777792231000,-2924.89372399,0.00011531,2]
[421511411,1777792231000,-355.22154633,0.00011531,2]
[421511410,1777792231000,-1054.7994986,0.00011531,2]
[421511407,1777792231000,-448.42004428,0.0001153,2]
[421511409,1777792231000,-320.92629404,0.00011531,2]
[421511408,1777792231000,-751.57995572,0.0001153,2]
[421511421,1777792231000,-400.0,0.000119,4]
[421511412,1777792231000,-0.68814988,0.00011531,2]
[421511416,1777792231000,-1102.2699314,0.00011534,2]
[421511417,1777792231000,-6133.876462,0.00011534,2]
[421511422,1777792231000,-1542.71638132,0.000119,2]
[421511415,1777792231000,-3280.8034202,0.00011531,2]
[421511436,1777792231000,-500.0,0.00011999,2]
[421511434,1777792231000,-500.0,0.00011999,2]
[421511433,1777792231000,-500.0,0.00011999,2]
[421511431,1777792231000,-500.0,0.00011999,2]
[421511430,1777792231000,-1659.542,0.00011999,2]
[421511432,1777792231000,-644.80460288,0.00011999,2]
[421511437,1777792231000,-500.0,0.00011999,2]
[421511427,1777792231000,-152.0,0.00011991,7]
[421511428,1777792231000,-200.0,0.00011993,2]
[421511435,1777792231000,-500.0,0.00011999,2]
[421511426,1777792231000,-152.0,0.00011991,7]
[421511425,1777792231000,-152.0,0.00011991,7]
[421511424,1777792231000,-152.0,0.00011991,7]
[421511429,1777792231000,-500.0,0.00011993,2]
[421511439,1777792232000,-500.0,0.00011999,2]
[421511438,1777792232000,-500.0,0.00011999,2]
[421511446,1777792232000,-319.54254708,0.00011999,2]
[421511443,1777792232000,-500.0,0.00011999,2]
[421511444,1777792232000,-233.14128386,0.00011999,2]
[421511442,1777792232000,-290.50387661,0.00011999,2]
[421511441,1777792232000,-495.53993149,0.00011999,2]
[421511445,1777792232000,-500.0,0.00011999,2]
[421511448,1777792232000,-314.57995572,0.00012,2]
[421511447,1777792232000,-295412.80504901,0.00012,2]
[421511440,1777792232000,-500.0,0.00011999,2]
[421511455,1777792237000,-793.66649967,0.00012,2]
[421511456,1777792237000,-59652.91415756,0.00012,2]
[421511459,1777792237000,-380.52932165,0.00012,2]
[421511458,1777792237000,-829.67010334,0.00012,2]
[421511460,1777792237000,-217186.63626963,0.00012,2]
[421511457,1777792237000,-48993.48432967,0.00012,2]
[421511464,1777792240000,-3899.45,0.00012,2]
[421511478,1777792241000,-892.90173124,0.00012,2]
[421511694,1777792242000,-1936.07282185,0.00012,2]
[421511691,1777792242000,-86418.73953376,0.00012,2]
[421511671,1777792242000,-6665.15403673,0.00012,2]
[421511663,1777792242000,-15750.67246153,0.00012,2]
[421511765,1777792245000,-9430.35816085,0.00012,2]
[421511764,1777792245000,-7115.96757976,0.00012,2]
[421511767,1777792245000,-15138.96431859,0.00012,2]
[421511766,1777792245000,-897.82971867,0.00012,2]
[421511768,1777792246000,-22572.74767812,0.00012,2]
[421511769,1777792246000,-18067.92899737,0.00012,2]
[421511773,1777792524000,-300.0,0.00011899,2]
[421511775,1777792524000,-1529.65002305,0.000119,2]
[421511774,1777792524000,-480.0,0.00011899,2]
[421511776,1777792524000,-13181.71185026,0.000119,2]
[421511777,1777792524000,-248.56615761,0.0001194,2]
[421511779,1777792524000,-3280.8034202,0.0001199,2]
[421511778,1777792524000,-4054.7763061,0.0001199,2]
[421511780,1777792524000,-500.0,0.00011993,2]
[421511782,1777792524000,-388.39332572,0.00011999,2]
[421511783,1777792524000,-306.99563186,0.00011999,2]
[421511790,1777792524000,-151.0,0.00012,2]
[421511788,1777792524000,-306.0,0.00012,2]
[421511789,1777792524000,-151.0,0.00012,2]
[421511781,1777792524000,-150.0,0.00011999,2]
[421511787,1777792524000,-159508.48895686,0.00012,2]
[421511785,1777792524000,-500.0,0.00011999,2]
[421511784,1777792524000,-500.0,0.00011999,2]
[421511786,1777792524000,-500.0,0.00011999,2]
[421511792,1777792525000,249.17356089,0.00012,2]
[421511791,1777792525000,151.0,0.00012,2]
[421511793,1777792534000,500.0,0.00011999,2]
[421511794,1777792534000,500.0,0.00011999,2]
[421511795,1777792538000,3941.2863252,0.00011998,2]
[421511796,1777792557000,151.0,0.00012,2]
[421511797,1777792623000,16049.4218269,0.00011998,2]
[421511798,1777792665000,166.3293139,0.00011998,2]
[421511799,1777792710000,456.682005,0.00011998,2]
[421511800,1777792814000,2692.24,0.00030137,120]
[421511801,1777792815000,151.0,0.00012,2]
[421511802,1777792857000,151.0,0.00012,2]
[421511803,1777792925000,3347.6504946,0.00011998,2]
[421511804,1777792966000,1536.6453084,0.00011998,2]
[421511805,1777792996000,200.0,0.00011902,2]
[421511806,1777793157000,151.0,0.00012,2]
[421511807,1777793159000,170.96246896,0.00012,2]
[421511808,1777793227000,3500.55131773,0.000114,2]
[421511827,1777793252000,-160.59,0.00014425,2]
[421511826,1777793252000,-172.11,0.00014198,2]
[421511825,1777793252000,-169.05,0.00013829,2]
[421511823,1777793252000,-2499.92,0.00013746,2]
[421511821,1777793252000,-500.0,0.00013698,2]
[421511822,1777793252000,-160.59,0.00013739,2]
[421511819,1777793252000,-500.0,0.00013698,2]
[421511820,1777793252000,-500.0,0.00013698,2]
[421511818,1777793252000,-500.0,0.00013698,2]
[421511815,1777793252000,-500.0,0.00013698,2]
[421511816,1777793252000,-500.0,0.00013698,2]
[421511814,1777793252000,-500.0,0.00013698,2]
[421511813,1777793252000,-250.0,0.00013601,2]
[421511812,1777793252000,-160.59,0.00013052,2]
[421511810,1777793252000,-152.0,0.00012471,7]
[421511809,1777793252000,-160.59,0.00012365,2]
[421511811,1777793252000,-152.0,0.00012484,7]
[421511824,1777793252000,-152.0,0.00013749,7]
[421511817,1777793252000,-500.0,0.00013698,2]
[421511828,1777793252000,-366.87,0.000146,4]
[421511850,1777793252000,-200.0,0.00017087,2]
[421511830,1777793252000,-158.8,0.00015022,2]
[421511829,1777793252000,-9432.01,0.00014996,2]
[421511849,1777793252000,-173.77593595,0.00017087,2]
[421511847,1777793252000,-1758.30486309,0.00017087,2]
[421511848,1777793252000,-222.44596096,0.00017087,2]
[421511846,1777793252000,-2500.0,0.00016997,2]
[421511843,1777793252000,-350.0,0.00016608,2]
[421511844,1777793252000,-400.0,0.000168,6]
[421511842,1777793252000,-158.8,0.00016603,2]
[421511841,1777793252000,-200.0,0.00016508,2]
[421511845,1777793252000,-800.0,0.000169,6]
[421511840,1777793252000,-160.59,0.00016486,2]
[421511831,1777793252000,-160.59,0.00015112,2]
[421511839,1777793252000,-158.8,0.00016208,2]
[421511833,1777793252000,-158.8,0.00015417,2]
[421511835,1777793252000,-160.59,0.00015799,2]
[421511832,1777793252000,-197.66,0.0001537,2]
[421511836,1777793252000,-158.8,0.00015813,2]
[421511837,1777793252000,-199.0,0.00016,2]
[421511838,1777793252000,-190.11,0.00016204,2]
[421511834,1777793252000,-228.82,0.00015492,2]
[421511857,1777793253000,-283.19155623,0.00017096,2]
[421511851,1777793253000,-520.79427839,0.00017087,2]
[421511853,1777793253000,-500.0,0.00017087,2]
[421511852,1777793253000,-162.23694669,0.00017087,2]
[421511854,1777793253000,-517.43341227,0.00017087,2]
[421511856,1777793253000,-500.0,0.00017096,2]
[421511858,1777793253000,-214.8969423,0.00017096,2]
[421511859,1777793253000,-500.0,0.00017096,2]
[421511855,1777793253000,-500.0,0.00017096,2]
[421511861,1777793253000,-500.0,0.00017096,2]
[421511863,1777793253000,-377.29582371,0.00017096,2]
[421511862,1777793253000,-500.0,0.00017096,2]
[421511869,1777793253000,-156.64616612,0.00017096,2]
[421511864,1777793253000,-568.19805411,0.00017096,2]
[421511865,1777793253000,-500.0,0.00017096,2]
[421511866,1777793253000,-500.0,0.00017096,2]
[421511867,1777793253000,-500.0,0.00017096,2]
[421511868,1777793253000,-500.0,0.00017096,2]
[421511860,1777793253000,-500.0,0.00017096,2]
[421511870,1777793356000,43275.66851119,0.00010682,2]
[421511873,1777793367000,-150.0,0.000154,2]
[421511871,1777793367000,-163.3415841,0.00015263,2]
[421511874,1777793367000,-151.0,0.00015835,2]
[421511872,1777793367000,-150.0,0.00015296,2]
[421511876,1777793367000,-152.0,0.00016942,2]
[421511878,1777793367000,-151.0,0.00016942,2]
[421511875,1777793367000,-350.0,0.00016942,2]
[421511879,1777793367000,-626.1936132,0.00017001,2]
[421511877,1777793367000,-151.0,0.00016942,2]
[421511880,1777793370000,262.25583816,0.000101,2]
[421511881,1777793371000,57042.76704913,0.00012,2]
[421511882,1777793413000,655228.17306776,0.00012,2]
[421511910,1777793431000,-3732.06094082,0.00017097,2]
[421511900,1777793431000,-243.35383388,0.00017096,2]
[421511895,1777793431000,-2500.0,0.00017066,2]
[421511896,1777793431000,-2500.0,0.00017066,2]
[421511902,1777793431000,-500.0,0.00017096,2]
[421511892,1777793431000,-150.0,0.00017001,2]
[421511891,1777793431000,-1698.91580697,0.00017001,2]
[421511894,1777793431000,-58.78690412,0.00017019,2]
[421511889,1777793431000,-150.0,0.00016997,2]
[421511890,1777793431000,-15549.43680036,0.00017001,2]
[421511898,1777793431000,-1080.83107576,0.00017087,2]
[421511888,1777793431000,-1682.20411408,0.00016997,2]
[421511887,1777793431000,-817.79588592,0.00016997,2]
[421511893,1777793431000,-2441.21309588,0.00017019,2]
[421511901,1777793431000,-500.0,0.00017096,2]
[421511897,1777793431000,-2500.0,0.00017066,2]
[421511899,1777793431000,-152.0,0.00017096,2]
[421511905,1777793431000,-500.0,0.00017096,2]
[421511919,1777793431000,-2400.08108294,0.00017097,2]
[421511916,1777793431000,-803979.26155354,0.00017097,2]
[421511917,1777793431000,-5581.68741989,0.00017097,2]
[421511915,1777793431000,-1074.01209574,0.00017097,2]
[421511914,1777793431000,-1400.28333154,0.00017097,2]
[421511911,1777793431000,-1630.87669183,0.00017097,2]
[421511918,1777793431000,-11246.17765113,0.00017097,2]
[421511912,1777793431000,-622.24371639,0.00017097,2]
[421511907,1777793431000,-151.0,0.00017097,2]
[421511906,1777793431000,-500.0,0.00017096,2]
[421511908,1777793431000,-1582.47437679,0.00017097,2]
[421511909,1777793431000,-3401.0276384,0.00017097,2]
[421511904,1777793431000,-500.0,0.00017096,2]
[421511903,1777793431000,-500.0,0.00017096,2]
[421511913,1777793431000,-278.617552,0.00017097,2]
[421511927,1777793437000,-104131.6314323,0.00017097,2]
[421511928,1777793438000,-322.63360687,0.00017097,2]
[421512053,1777793440000,-11389.78747162,0.00017097,2]
[421512052,1777793440000,-3853.8,0.00017097,2]
[421512064,1777793443000,-15722.16279677,0.00017097,2]
[421512062,1777793443000,-1478.26274838,0.00017097,2]
[421512063,1777793443000,631.46744813,0.000119,3]
[421512065,1777793443000,-206908.74956984,0.00017097,2]
[421512067,1777793443000,-151.0,0.00017197,2]
[421512068,1777793443000,-3941.2863252,0.00017197,2]
[421512069,1777793443000,-14242.26223273,0.00017197,2]
[421512070,1777793443000,-271.96277641,0.00017197,2]
[421512066,1777793443000,-152.0,0.00017097,2]
[421512085,1777793446000,-390.23465,0.0001829,2]
[421512083,1777793446000,-390.23465,0.0001829,2]
[421512086,1777793446000,-390.23465,0.0001829,2]